bitfinex/quotes_ETHUSD_20250424
["timestamp","ask_amount","ask_price","bid_price","bid_amount"]
[1745512513952,5.63699024,1774.0,1773.7,5.82779919]
[1745512514343,5.63699024,1774.0,1773.7,0.19]
[1745512514741,5.63734864,1773.9,1773.7,0.19]
[1745512514953,5.63699024,1774.0,1773.7,0.19]
[1745512515135,5.63743675,1773.9,1773.7,0.19]
[1745512515978,5.63713409,1774.0,1773.7,0.19]
[1745512516268,6.45316343,1774.3,1773.9,5.63709345]
[1745512516474,0.56359683,1774.4,1774.0,0.7769]
[1745512516643,5.63553422,1774.5,1774.1,5.63638048]
[1745512516841,5.63553422,1774.5,1774.1,6.28334547]
[1745512517175,8.63523609,1774.6,1774.0,6.41371829]
[1745512517176,5.63606363,1774.3,1774.0,6.41371829]
[1745512517475,5.63606363,1774.3,1774.0,0.7769]
[1745512517770,5.63643457,1774.2,1774.0,0.7769]
[1745512517965,5.63606363,1774.3,1774.0,0.7769]
[1745512518170,5.63583399,1774.4,1774.0,6.41374546]
[1745512518345,5.63583399,1774.4,1774.0,6.41365495]
[1745512518548,11.27120811,1774.5,1774.1,5.63654015]
[1745512518772,5.63571037,1774.4,1774.0,6.41365495]
[1745512518958,5.63627277,1774.3,1774.0,0.7769]
[1745512519150,5.63627277,1774.3,1774.0,6.41383934]
[1745512519502,5.63626214,1774.3,1774.0,0.7769]
[1745512520138,5.63590267,1774.4,1774.1,5.63663065]
[1745512520337,5.63590267,1774.4,1774.0,0.7769]
[1745512520338,5.63590267,1774.4,1774.0,6.41366886]
[1745512520549,5.63590267,1774.4,1774.0,12.05046877]
[1745512520778,5.63590267,1774.4,1774.0,13.25551565]
[1745512520958,5.63590267,1774.4,1774.0,13.25550951]
[1745512521281,5.63666084,1774.1,1774.0,1.20504688]
[1745512521486,5.63758691,1773.9,1773.8,5.044]
[1745512521788,5.63761416,1773.8,1773.7,0.19]
[1745512522153,8.63761416,1773.8,1773.7,0.19]
[1745512522686,10.14076427,1773.8,1773.7,0.19]
[1745512522886,15.13945006,1773.8,1773.7,0.19]
[1745512523085,15.89358571,1773.8,1773.7,0.19]
[1745512525388,10.95116427,1773.8,1773.7,0.19]
[1745512525580,6.44801416,1773.8,1773.7,0.19]
[1745512526091,9.44801416,1773.8,1773.7,0.19]
[1745512526255,8.63761416,1773.8,1773.7,0.19]
[1745512526456,5.63716614,1774.0,1773.7,0.19]
[1745512526457,5.6374487,1773.9,1773.7,0.19]
[1745512526699,11.27502886,1773.9,1773.7,0.19]
[1745512526897,5.63761416,1773.8,1773.7,0.19]
[1745512527414,5.63749671,1773.9,1773.7,0.71175392]
[1745512527765,5.63761416,1773.8,1773.7,0.71175392]
[1745512528564,6.76512525,1773.8,1773.7,0.71175392]
[1745512528861,6.76512525,1773.8,1773.7,0.19]
[1745512529263,9.76512525,1773.8,1773.7,0.19]
[1745512529462,9.8213896,1773.8,1773.7,0.19]
[1745512529717,9.76512525,1773.8,1773.7,0.19]
[1745512529864,8.63761416,1773.8,1773.7,0.19]
[1745512531006,5.636754,1774.1,1773.7,6.3498117]
[1745512531209,5.63699512,1774.0,1773.8,0.8069]
[1745512531567,11.27424159,1774.0,1773.8,0.8069]
[1745512531797,5.63683643,1774.1,1773.8,0.8069]
[1745512532299,5.63683643,1774.1,1773.8,1.47035987]
[1745512532499,11.27379725,1774.1,1773.8,1.47035987]
[1745512532700,5.63683643,1774.1,1773.8,1.47035987]
[1745512533013,5.63713744,1774.0,1773.8,1.47035987]
[1745512533172,5.63682307,1774.1,1773.8,0.8069]
[1745512534070,5.63682307,1774.1,1773.8,6.44442215]
[1745512534267,3.0,1774.1,1773.8,6.44442215]
[1745512534463,5.63694304,1774.1,1773.8,0.8069]
[1745512534704,5.63691057,1774.1,1773.8,0.8069]
[1745512534868,11.27388707,1774.1,1773.8,1.4703646]
[1745512535073,5.63697857,1774.0,1773.9,0.52177885]
[1745512535611,8.63651303,1774.2,1773.9,0.52177885]
[1745512535770,3.0,1774.2,1773.9,0.52177885]
[1745512535975,8.63622853,1774.3,1773.9,6.15889161]
[1745512536199,5.63642232,1774.2,1774.0,1.13766801]
[1745512536510,5.63642232,1774.2,1774.0,0.52177885]
[1745512536914,5.63642232,1774.2,1774.1,0.52177885]
[1745512537265,8.63619865,1774.3,1774.1,0.52177885]
[1745512537695,5.63634314,1774.2,1773.8,12.08190465]
[1745512537974,5.63634314,1774.2,1773.8,6.4442985]
[1745512538290,6.63725154,1774.1,1773.9,1.16584019]
[1745512538494,5.63697857,1774.0,1773.9,0.52141034]
[1745512538891,5.63670443,1774.1,1773.9,0.52141034]
[1745512539470,5.63670443,1774.1,1773.8,0.8069]
[1745512539905,11.27367995,1774.1,1773.8,0.8069]
[1745512540205,5.63670443,1774.1,1773.9,0.52139953]
[1745512540417,5.63697857,1774.0,1773.9,0.52139953]
[1745512540777,9.82061122,1774.0,1773.9,0.52139953]
[1745512541512,5.63761416,1773.8,1773.7,0.19]
[1745512541804,6.69442562,1773.8,1773.7,0.19]
[1745512542569,7.40476127,1773.8,1773.7,0.19]
[1745512543092,7.46102562,1773.8,1773.7,0.19]
[1745512543274,9.07087189,1773.8,1773.7,0.19]
[1745512543693,9.01460754,1773.8,1773.7,0.19]
[1745512544209,6.63816127,1773.8,1773.7,0.19]
[1745512544507,5.63761416,1773.8,1773.7,0.19]
[1745512545377,5.69387851,1773.8,1773.7,0.19]
[1745512546498,8.69387851,1773.8,1773.7,0.19]
[1745512547333,8.63761416,1773.8,1773.7,0.19]
[1745512547496,10.165174,1773.8,1773.7,0.19]
[1745512552138,10.22143835,1773.8,1773.7,0.19]
[1745512552634,5.63977482,1773.2,1772.9,5.018]
[1745512553008,5.63977482,1773.2,1773.0,0.7848]
[1745512553337,6.63987981,1773.3,1773.0,0.7848]
[1745512553637,12.27933447,1773.3,1773.0,0.7848]
[1745512553948,3.0,1773.6,1773.2,5.63934917]
[1745512554109,1.00054711,1773.8,1773.4,5.63859573]
[1745512554304,6.63827837,1773.8,1773.4,5.63859573]
[1745512554634,5.63795695,1773.7,1773.4,5.63859573]
[1745512554841,5.63795695,1773.7,1773.5,0.52205459]
[1745512555526,8.63795695,1773.7,1773.6,0.52205459]
[1745512556231,8.63795695,1773.7,1773.5,0.52205459]
[1745512556403,3.0,1773.7,1773.5,6.16046475]
[1745512556609,3.0,1773.7,1773.6,0.52205459]
[1745512556835,3.0,1773.7,1773.6,6.95250447]
[1745512556999,3.0,1773.7,1773.6,2.57334605]
[1745512557200,6.63794358,1773.9,1773.6,2.57334605]
[1745512557410,6.63794358,1773.9,1773.6,1.31425459]
[1745512557636,6.63794358,1773.9,1773.7,0.52205459]
[1745512558137,5.63761416,1773.8,1773.7,0.52205459]
[1745512559359,6.63794358,1773.9,1773.7,0.52205459]
[1745512559661,4.00054711,1774.0,1773.7,5.63780636]
[1745512559807,9.63761554,1774.0,1773.8,0.52186783]
[1745512560508,1.00054711,1774.0,1773.8,6.25343294]
[1745512561069,1.00054711,1774.0,1773.9,0.52170101]
[1745512561505,6.63752568,1774.0,1773.9,0.52170101]
[1745512562952,5.63807619,1773.7,1773.4,0.8319]
[1745512563155,6.6386233,1773.7,1773.5,0.52215066]
[1745512563342,1.00054711,1773.7,1773.5,6.16067582]
[1745512564156,1.00054711,1773.7,1773.6,0.52215066]
[1745512564768,1.00054711,1773.8,1773.6,0.52215066]
[1745512564962,1.00054711,1773.8,1773.7,0.52215066]
[1745512565557,1.00054711,1774.1,1773.9,5.63724274]
[1745512565714,9.63736819,1774.1,1773.8,6.43243301]
[1745512566358,9.63736819,1774.1,1773.9,0.52215066]
[1745512566527,10.68214501,1774.1,1773.9,0.52215066]
[1745512566847,10.68214501,1774.1,1773.8,0.795]
[1745512567057,5.63707369,1774.0,1773.8,0.795]
[1745512568250,5.63706395,1774.0,1773.9,0.52237427]
[1745512569760,1.00054711,1774.1,1773.9,0.52237427]
[1745512570364,1.00054711,1774.1,1774.0,0.52237427]
[1745512572095,6.63720795,1774.1,1774.0,0.52237427]
[1745512572362,1.00054711,1774.1,1774.0,0.52237427]
[1745512572538,6.63720795,1774.1,1774.0,0.52237427]
[1745512572938,5.63666084,1774.1,1773.9,0.52237427]
[1745512573141,6.63723339,1774.1,1773.9,0.52237427]
[1745512573342,1.00054711,1774.1,1773.9,6.15954451]
[1745512573538,1.00054711,1774.3,1774.0,5.63677771]
[1745512573751,1.00054711,1774.5,1774.3,5.63593136]
[1745512573956,1.00054711,1774.6,1774.3,6.40343136]
[1745512574155,4.00054711,1774.6,1774.3,6.40343136]
[1745512574368,4.00054711,1774.6,1774.4,0.52169729]
[1745512574963,4.00054711,1774.6,1774.3,6.40349061]
[1745512575164,1.00054711,1774.6,1774.4,5.63565075]
[1745512575363,1.00054711,1774.6,1774.4,5.63549937]
[1745512575668,1.00054711,1775.3,1774.8,5.63443768]
[1745512575873,1.00054711,1775.5,1774.9,0.8251]
[1745512576186,1.00054711,1775.5,1775.1,5.63327781]
[1745512576537,4.00054711,1775.5,1775.1,5.63327781]
[1745512576740,1.00054711,1775.5,1775.1,5.63327781]
[1745512576982,1.00054711,1775.5,1775.0,5.63360433]
[1745512577180,6.63303564,1775.5,1775.1,0.56336043]
[1745512577369,6.63303564,1775.5,1775.1,6.1967]
[1745512577879,6.63284492,1775.5,1775.1,6.19661468]
[1745512578039,4.00054711,1775.5,1775.1,0.56336043]
[1745512578383,6.63293817,1775.5,1775.1,5.63325277]
[1745512578849,6.41311877,1775.6,1775.2,5.63288806]
[1745512579041,3.0,1775.5,1775.2,5.63288806]
[1745512579236,4.00054711,1775.5,1775.3,0.56328881]
[1745512580477,6.63280438,1775.5,1775.3,0.56328881]
[1745512580985,1.00054711,1775.5,1775.3,0.56328881]
[1745512581274,6.63284234,1775.5,1775.3,0.56328881]
[1745512581574,6.63284234,1775.5,1775.2,5.63313973]
[1745512581751,1.00054711,1775.5,1775.2,5.63313973]
[1745512581948,4.00054711,1775.5,1775.2,5.63313973]
[1745512582765,4.00054711,1775.5,1775.0,0.7766]
[1745512582943,7.39450134,1775.3,1774.9,10.62802422]
[1745512583764,7.39450134,1775.3,1775.0,5.63368808]
[1745512583969,7.39445786,1775.3,1774.9,10.62788424]
[1745512584164,7.39445786,1775.3,1774.9,16.26182426]
[1745512584474,7.39445786,1775.3,1774.9,10.62799872]
[1745512584783,7.39445786,1775.3,1775.0,6.69657923]
[1745512585594,8.63270317,1775.4,1775.1,5.6333856]
[1745512585800,7.44959258,1775.5,1775.1,5.6333856]
[1745512585959,8.63255223,1775.4,1775.1,5.6333856]
[1745512586588,8.63255223,1775.4,1775.0,6.69635407]
[1745512586790,8.63255223,1775.4,1775.1,0.66963541]
[1745512586952,5.63290975,1775.3,1775.1,0.66963541]
[1745512587149,5.63290975,1775.3,1775.0,1.06279987]
[1745512587353,1.00054711,1775.3,1774.9,4.994]
[1745512587600,3.75,1774.8,1774.4,0.7756]
[1745512587888,5.63539025,1774.5,1774.3,4.992]
[1745512588101,5.63567402,1774.5,1774.3,4.992]
[1745512588280,5.63567402,1774.5,1774.1,5.63656852]
[1745512588281,5.63570784,1774.4,1774.1,5.63656852]
[1745512588456,12.27185738,1774.5,1774.2,0.56365685]
[1745512588656,6.63618336,1774.5,1774.2,6.19995656]
[1745512588884,6.63618336,1774.5,1774.2,0.56365685]
[1745512589607,5.63586717,1774.4,1774.2,0.56365685]
[1745512589896,5.63586717,1774.4,1774.0,28.31316256]
[1745512590103,5.63613501,1774.3,1774.0,28.31331804]
[1745512590307,5.63586717,1774.4,1774.0,28.31331804]
[1745512590467,7.41638858,1774.5,1774.1,5.63665372]
[1745512590672,5.6357439,1774.4,1774.0,28.31331804]
[1745512590892,5.6357439,1774.4,1774.1,2.8313318]
[1745512591074,5.63617166,1774.3,1774.1,2.8313318]
[1745512591269,5.6357439,1774.4,1774.0,17.0401617]
[1745512591601,1.78084711,1774.5,1774.1,5.63660974]
[1745512591773,5.63584166,1774.4,1774.0,11.40326297]
[1745512591973,5.63584166,1774.4,1774.0,11.40314876]
[1745512592173,7.41637598,1774.5,1774.0,5.7664]
[1745512592373,5.63583873,1774.4,1774.1,0.57664]
[1745512592574,4.78084711,1774.5,1774.1,0.57664]
[1745512592820,5.63572023,1774.4,1774.1,0.57664]
[1745512592986,6.41599411,1774.5,1774.1,0.57664]
[1745512593189,5.63581177,1774.4,1774.1,0.57664]
[1745512594076,6.41586588,1774.5,1774.1,6.21312939]
[1745512594274,12.0515284,1774.5,1774.1,6.21312939]
[1745512594787,6.41586588,1774.5,1774.1,6.21312939]
[1745512594986,5.63604182,1774.3,1774.1,0.57664]
[1745512595191,5.63663344,1774.2,1774.0,4.991]
[1745512595393,5.63663344,1774.2,1773.8,6.39671257]
[1745512595587,5.63663344,1774.2,1773.8,6.39668972]
[1745512595812,5.63663344,1774.2,1773.9,5.63717154]
[1745512596021,5.63663344,1774.2,1773.9,6.84055767]
[1745512596326,12.27306262,1774.3,1773.9,6.84055767]
[1745512596548,12.2730657,1774.3,1773.9,6.84055767]
[1745512596690,6.63675725,1774.3,1774.0,5.63693177]
[1745512596889,6.63675725,1774.3,1773.9,6.84055767]
[1745512596890,5.63621014,1774.3,1773.9,6.84055767]
[1745512597222,5.63621014,1774.3,1773.9,6.84051275]
[1745512597424,3.0,1774.3,1774.0,6.32077004]
[1745512597585,3.0,1774.3,1774.0,11.95752906]
[1745512597785,3.0,1774.3,1774.0,6.32077004]
[1745512598206,6.41585563,1774.5,1774.0,0.68405128]
[1745512598519,3.0,1774.4,1774.1,6.44256461]
[1745512598680,3.0,1774.4,1774.2,5.63625903]
[1745512598881,5.63525899,1774.6,1774.2,5.63624397]
[1745512599124,6.43618335,1774.7,1774.3,5.6358833]
[1745512599283,3.0,1774.6,1774.3,6.76308883]
[1745512599819,8.63508428,1774.6,1774.3,6.76308883]
[1745512600022,1.42032605,1774.9,1774.5,5.63539025]
[1745512600023,5.63457554,1774.8,1774.5,5.63539025]
[1745512600335,6.46129726,1775.1,1774.7,5.6345016]
[1745512600515,3.0,1775.0,1774.8,0.56345016]
[1745512600701,6.46129726,1775.1,1774.8,0.56345016]
[1745512600898,3.0,1775.0,1774.8,0.56345016]
[1745512601098,0.8277,1775.1,1774.6,5.63487227]
[1745512601301,5.63400739,1775.0,1774.7,5.63465454]
[1745512602170,3.0,1775.0,1774.7,5.63455601]
[1745512602426,3.0,1775.0,1774.8,5.63443675]
[1745512602625,3.0,1775.0,1774.7,5.63455601]
[1745512602827,3.0,1775.1,1774.8,0.5634556]
[1745512603434,8.63362413,1775.1,1774.8,0.5634556]
[1745512603592,3.0,1775.1,1774.8,0.5634556]
[1745512603796,3.0,1775.1,1774.9,5.63395194]
[1745512603997,3.0,1775.1,1774.8,5.63424917]
[1745512604306,3.0,1775.1,1774.9,5.63399419]
[1745512604487,8.63351242,1775.1,1774.8,5.63422364]
[1745512604693,3.0,1775.1,1774.8,6.83955414]
[1745512604888,3.0,1775.1,1774.9,5.63400213]
[1745512605107,8.63365828,1775.1,1774.8,1.2053305]
[1745512605329,3.0,1775.1,1774.8,12.47389736]
[1745512605627,3.0,1775.1,1774.9,5.63397675]
[1745512605933,8.63353611,1775.1,1774.9,1.2473538]
[1745512606135,8.63353611,1775.1,1774.7,6.41909603]
[1745512606324,3.0,1775.1,1774.7,6.41906273]
[1745512606533,8.63351836,1775.1,1774.8,5.6342566]
[1745512606836,3.0,1775.1,1774.8,5.6342566]
[1745512607037,3.0,1775.1,1774.8,5.63443614]
[1745512607340,3.0,1775.1,1774.8,6.83978852]
[1745512607743,8.63360287,1775.1,1774.8,6.83978852]
[1745512608038,3.0,1775.1,1774.8,6.83978852]
[1745512608234,8.63349853,1775.1,1774.8,1.20535238]
[1745512608740,3.0,1775.1,1774.8,6.83968976]
[1745512608924,3.0,1775.1,1774.9,0.68396898]
[1745512609128,8.63348623,1775.1,1774.9,0.68396898]
[1745512609920,5.63380281,1775.0,1774.9,0.68396898]
[1745512610242,5.63380281,1775.0,1774.8,1.20535238]
[1745512611442,5.63429223,1774.9,1774.5,11.40826989]
[1745512611749,1.76384711,1774.7,1774.1,0.7821]
[1745512611950,5.63612327,1774.3,1774.1,0.7821]
[1745512612408,5.63612327,1774.3,1774.0,4.99]
[1745512612605,5.63572444,1774.4,1774.0,12.25336345]
[1745512612819,5.63572444,1774.4,1774.0,12.25318496]
[1745512613509,5.63572444,1774.4,1774.1,5.63652067]
[1745512613709,5.63572444,1774.4,1774.0,12.25319116]
[1745512614252,11.27169265,1774.4,1774.0,12.25319116]
[1745512614663,5.63604555,1774.3,1774.0,12.25319116]
[1745512614810,5.63604555,1774.3,1774.0,6.61640921]
[1745512615211,5.63604555,1774.3,1774.0,12.25338321]
[1745512615412,8.63592256,1774.4,1774.0,12.25338321]
[1745512615813,14.27192663,1774.4,1774.0,12.25338321]
[1745512616153,5.63612668,1774.3,1774.0,6.61640921]
[1745512616313,5.636344,1774.2,1774.0,4.99]
[1745512616513,11.27293943,1774.2,1774.0,4.99]
[1745512616714,11.27363765,1774.1,1773.7,11.38347905]
[1745512616960,5.63709168,1774.0,1773.8,0.52079596]
[1745512617329,5.63709168,1774.0,1773.7,5.7457]
[1745512617515,5.63686638,1774.1,1773.7,11.38361784]
[1745512618235,5.63686638,1774.1,1773.7,13.08578325]
[1745512618614,5.63686638,1774.1,1773.7,13.08560414]
[1745512619163,3.0,1774.1,1773.7,10.62883369]
[1745512619451,5.63708461,1774.0,1773.7,10.6287966]
[1745512619752,5.63708461,1774.0,1773.7,4.991]
[1745512619956,5.63749316,1773.9,1773.7,4.991]
[1745512620717,5.63710678,1774.0,1773.7,4.991]
[1745512620945,11.2737551,1774.1,1773.7,10.62882973]
[1745512621150,5.63700796,1774.0,1773.7,10.62882973]
[1745512621798,5.63700796,1774.0,1773.7,4.991]
[1745512622094,5.63700796,1774.0,1773.7,10.62891542]
[1745512622257,3.0,1774.2,1773.7,4.991]
[1745512622442,1.80294711,1774.3,1774.0,5.63683772]
[1745512622443,6.43848371,1774.3,1774.0,5.63683772]
[1745512622789,0.7957,1774.1,1773.4,0.01791987]
[1745512623085,6.43382711,1773.7,1773.4,0.01791987]
[1745512623288,6.43382741,1773.7,1773.4,0.01791987]
[1745512623445,5.63827828,1773.6,1773.4,0.01791987]
[1745512623796,5.63849528,1773.6,1773.4,0.01791987]
[1745512623948,8.69483215,1773.5,1773.4,0.01791987]
[1745512624729,8.6385678,1773.5,1773.4,0.01791987]
[1745512627790,8.69483215,1773.5,1773.4,0.01791987]
[1745512627962,9.51183215,1773.5,1773.4,0.01791987]
[1745512628150,11.24764066,1773.5,1773.4,0.01791987]
[1745512629782,11.19137631,1773.5,1773.4,0.01791987]
[1745512630810,11.24764066,1773.5,1773.4,0.01791987]
[1745512631104,11.19137631,1773.5,1773.4,0.01791987]
[1745512631307,3.0,1773.5,1773.4,0.01791987]
[1745512631597,8.6385678,1773.5,1773.4,0.01791987]
[1745512633695,8.69483215,1773.5,1773.4,0.01791987]
[1745512634193,8.6385678,1773.5,1773.4,0.01791987]
[1745512634399,8.69483215,1773.5,1773.4,0.01791987]
[1745512634613,10.12816489,1773.5,1773.4,0.01791987]
[1745512634812,11.947612,1773.5,1773.4,0.01791987]
[1745512634980,11.89134765,1773.5,1773.4,0.01791987]
[1745512638771,11.89134765,1773.5,1772.8,0.7595]
[1745512638977,11.89134765,1773.5,1772.7,4.992]
[1745512638978,5.64047605,1772.9,1772.7,4.992]
[1745512639412,5.6400033,1773.1,1772.7,4.992]
[1745512639612,14.27947843,1773.2,1772.8,5.640511]
[1745512639911,5.64015792,1773.0,1772.9,0.832]
[1745512640118,5.64057978,1772.9,1772.7,5.824]
[1745512640280,5.64015792,1773.0,1772.7,5.824]
[1745512640481,5.64056547,1772.9,1772.7,5.824]
[1745512641020,5.64032299,1773.0,1772.7,5.824]
[1745512641213,5.64032299,1773.0,1772.7,11.46510751]
[1745512641729,5.64003615,1773.1,1772.8,5.64066355]
[1745512642294,11.2801614,1773.1,1772.7,13.17556947]
[1745512642491,5.64029832,1773.0,1772.7,7.53463648]
[1745512642707,5.64029832,1773.0,1772.7,13.1757239]
[1745512642906,5.64059627,1772.9,1772.7,5.824]
[1745512643116,5.64029832,1773.0,1772.7,11.46499121]
[1745512643320,5.63998244,1773.1,1772.7,17.1059355]
[1745512643616,4.18913476,1773.4,1772.8,0.7771]
[1745512643820,5.63964797,1773.2,1772.9,5.64029877]
[1745512644517,8.63955825,1773.2,1772.9,5.64029877]
[1745512644682,3.0,1773.2,1772.9,5.64040251]
[1745512644884,8.63962041,1773.2,1772.9,5.64040251]
[1745512645621,5.63994984,1773.1,1772.8,0.7771]
[1745512646014,11.2800257,1773.1,1772.8,0.7771]
[1745512646203,5.64018996,1773.0,1772.8,0.7771]
[1745512646617,5.64018996,1773.0,1772.9,0.52259148]
[1745512646889,5.64018996,1773.0,1772.8,0.7771]
[1745512647286,5.64105712,1772.8,1772.6,0.7993]
[1745512647600,5.64111242,1772.7,1772.6,0.7993]
[1745512647928,5.64156521,1772.6,1772.4,5.7641]
[1745512648120,5.64156521,1772.6,1772.5,0.52310244]
[1745512648487,5.64174894,1772.5,1772.4,4.993]
[1745512648893,0.56973215,1772.8,1772.5,6.47182271]
[1745512649115,5.64079854,1772.8,1772.6,0.52304072]
[1745512649315,5.64111242,1772.7,1772.6,0.52304072]
[1745512649628,5.64111242,1772.7,1772.5,0.8302]
[1745512651130,5.64079854,1772.8,1772.5,0.8302]
[1745512651308,11.28186783,1772.8,1772.5,0.8302]
[1745512651511,6.76898532,1772.8,1772.5,0.8302]
[1745512651822,5.6412425,1772.7,1772.5,0.8302]
[1745512652517,5.6412425,1772.7,1772.6,0.52367061]
[1745512652831,5.64079854,1772.8,1772.6,0.52367061]
[1745512653324,5.64113738,1772.7,1772.5,0.8302]
[1745512653691,5.64113738,1772.7,1772.4,4.993]
[1745512653692,5.64174894,1772.5,1772.4,4.993]
[1745512653895,10.14845134,1772.5,1772.4,4.993]
[1745512654138,5.64244605,1772.3,1772.1,5.7901]
[1745512654429,5.64244605,1772.3,1772.1,0.7981]
[1745512654991,5.64244605,1772.3,1772.2,0.52374824]
[1745512655196,5.64223817,1772.4,1772.1,6.44098945]
[1745512655397,15.79066676,1772.5,1772.2,0.52371476]
[1745512655704,15.79066676,1772.5,1772.1,6.44091924]
[1745512655911,5.64209903,1772.4,1772.1,6.44091924]
[1745512656107,1.5067024,1772.5,1772.3,5.64214553]
[1745512656416,5.64127799,1772.7,1772.4,0.52325229]
[1745512656731,6.45442677,1772.8,1772.4,0.52325229]
[1745512656934,5.64061273,1772.9,1772.5,6.45763556]
[1745512657233,11.28139456,1772.9,1772.5,6.45763556]
[1745512657399,11.28139456,1772.9,1772.5,6.98088785]
[1745512657600,12.09420617,1773.0,1772.6,5.64117361]
[1745512657800,5.64027371,1773.0,1772.7,0.52325229]
[1745512658035,5.64033043,1773.0,1772.7,1.33935229]
[1745512658329,5.64048572,1772.9,1772.7,1.33935229]
[1745512658542,5.640345,1773.0,1772.8,0.52325229]
[1745512658747,7.06803092,1773.1,1772.8,0.52325229]
[1745512659231,5.64032086,1773.0,1772.7,0.8161]
[1745512659411,5.64032086,1773.0,1772.7,6.45716769]
[1745512660545,5.64032086,1773.0,1772.8,0.5230924]
[1745512660914,5.64032086,1773.0,1772.7,6.45714255]
[1745512661247,7.06803092,1773.1,1772.7,6.45714255]
[1745512661446,3.0,1773.1,1772.8,5.64068538]
[1745512661742,5.64018772,1773.0,1772.7,6.45704574]
[1745512661946,5.64049015,1772.9,1772.8,0.52302697]
[1745512662144,8.64049015,1772.9,1772.8,0.52302697]
[1745512662331,10.51410161,1772.9,1772.8,0.52302697]
[1745512662536,12.12953054,1772.9,1772.8,0.52302697]
[1745512662744,5.64127377,1772.7,1772.4,5.7674]
[1745512662944,5.64155724,1772.6,1772.4,5.7674]
[1745512663153,5.64155724,1772.6,1772.5,0.52371238]
[1745512664766,8.64155724,1772.6,1772.5,0.52371238]
[1745512664929,10.9811594,1772.6,1772.5,0.52371238]
[1745512665354,5.64249149,1772.3,1772.1,4.992]
[1745512665652,5.64249149,1772.3,1772.2,0.52436931]
[1745512666538,9.69930295,1772.3,1772.2,0.52436931]
[1745512666742,10.3981386,1772.3,1772.2,0.52436931]
[1745512666976,12.00216631,1772.3,1772.2,0.52436931]
[1745512667477,5.64348727,1772.0,1771.6,6.44920647]
[1745512667836,11.28709065,1772.0,1771.7,0.52433403]
[1745512668037,5.64390403,1771.9,1771.7,0.52433403]
[1745512668545,5.64390403,1771.9,1771.8,0.52433403]
[1745512668941,5.64284601,1772.2,1771.7,0.52433403]
[1745512669237,5.64302812,1772.1,1771.8,5.64387653]
[1745512669467,5.64284601,1772.2,1771.9,0.52433403]
[1745512669656,11.28580879,1772.2,1771.9,0.52433403]
[1745512669857,5.64305438,1772.1,1771.9,0.52433403]
[1745512670059,7.2469916,1772.2,1771.8,5.64377223]
[1745512670375,5.64311433,1772.1,1771.9,0.7512]
[1745512670752,5.64274464,1772.2,1771.9,0.7512]
[1745512672338,9.64302745,1772.3,1771.9,0.7512]
[1745512672544,14.28515491,1772.3,1771.9,6.39462099]
[1745512672739,3.0,1772.3,1772.0,6.16695389]
[1745512673167,3.0,1772.3,1772.0,11.81019857]
[1745512673477,3.0,1772.3,1772.0,5.64313286]
[1745512673773,8.64239218,1772.3,1772.0,5.64313286]
[1745512674075,8.64239218,1772.3,1771.9,11.38864809]
[1745512674377,5.64279585,1772.2,1771.9,11.38864809]
[1745512674669,5.64279585,1772.2,1771.9,5.7452]
[1745512674839,6.50707543,1772.2,1772.0,0.5240046]
[1745512675039,6.50707543,1772.2,1771.9,0.7512]
[1745512676376,6.50707543,1772.2,1772.0,0.52427987]
[1745512677349,12.15006088,1772.2,1771.9,0.7512]
[1745512677679,6.50707543,1772.2,1771.9,0.7512]
[1745512677845,9.44609749,1772.3,1771.9,12.03829535]
[1745512678048,14.28514222,1772.3,1771.9,6.39464155]
[1745512678249,5.64270957,1772.2,1771.9,6.39464155]
[1745512678449,5.64270957,1772.2,1772.0,0.52469437]
[1745512679183,5.6430224,1772.1,1772.0,0.52469437]
[1745512679355,5.64270957,1772.2,1771.9,0.7512]
[1745512679755,5.64270957,1772.2,1772.0,0.52478316]
[1745512680180,11.28572582,1772.2,1771.9,0.7512]
[1745512680477,8.64248167,1772.3,1771.9,6.39470078]
[1745512680681,14.28512141,1772.3,1771.9,6.39466383]
[1745512681177,8.64248167,1772.3,1771.9,6.39466383]
[1745512681347,5.64281025,1772.2,1772.0,0.52462227]
[1745512681783,8.64249984,1772.3,1772.0,0.52462227]
[1745512681944,8.64249984,1772.3,1772.1,0.52462227]
[1745512682146,9.51237626,1772.3,1772.1,0.52462227]
[1745512682649,9.51237626,1772.3,1772.0,5.64329528]
[1745512682893,3.0,1772.3,1772.0,5.64323778]
[1745512683076,3.0,1772.3,1772.1,5.64300738]
[1745512683259,5.64158442,1772.6,1772.3,5.64232041]
[1745512683594,5.64122162,1772.7,1772.4,5.64196773]
[1745512683895,5.64122162,1772.7,1772.5,0.5244084]
[1745512684091,6.76944228,1772.7,1772.5,0.5244084]
[1745512684258,8.64143066,1772.6,1772.5,0.5244084]
[1745512684600,3.0,1772.6,1772.4,5.64200395]
[1745512684811,5.64091203,1772.8,1772.4,5.64186546]
[1745512684957,5.64091203,1772.8,1772.3,11.28439421]
[1745512685281,14.28258058,1772.7,1772.4,1.12843942]
[1745512685476,5.64174894,1772.5,1772.4,0.52432281]
[1745512685882,5.6422988,1772.4,1772.2,4.994]
[1745512686195,11.28463976,1772.4,1772.2,4.994]
[1745512686679,11.28463976,1772.4,1771.8,0.7623]
[1745512686680,5.6430224,1772.1,1771.8,0.7623]
[1745512686987,5.6430224,1772.1,1771.8,6.40626776]
[1745512687153,5.6430224,1772.1,1771.9,0.52469124]
[1745512687556,5.6430224,1772.1,1772.0,0.52469124]
[1745512688479,5.64287294,1772.2,1772.0,0.52469124]
[1745512688857,5.64287294,1772.2,1771.9,5.64352438]
[1745512689695,5.64287294,1772.2,1771.8,6.40604882]
[1745512689988,4.00054711,1772.1,1771.7,4.992]
[1745512690168,5.64334085,1772.0,1771.9,0.52495487]
[1745512690367,5.64409372,1771.8,1771.5,1.1710979]
[1745512690871,3.0,1772.0,1771.6,6.1697721]
[1745512690872,14.28705423,1772.0,1771.6,6.1697721]
[1745512691077,5.64369767,1771.9,1771.6,6.1697721]
[1745512691466,5.64315195,1772.1,1771.7,0.5253098]
[1745512691667,5.64361346,1772.0,1771.7,0.5253098]
[1745512691891,5.64361346,1772.0,1771.8,0.5253098]
[1745512692276,5.64320104,1772.1,1771.9,0.5253098]
[1745512692483,11.28651597,1772.1,1771.9,0.5253098]
[1745512692780,5.64320104,1772.1,1771.7,5.64413743]
[1745512693091,5.64374581,1771.9,1771.6,5.64438867]
[1745512693269,5.64334651,1772.0,1771.6,5.64438867]
[1745512693457,5.64334651,1772.0,1771.8,0.52536707]
[1745512693857,5.64334651,1772.0,1771.9,0.52536707]
[1745512694356,5.64391499,1771.9,1771.6,0.52536707]
[1745512694553,5.64408439,1771.8,1771.6,0.52536707]
[1745512694757,5.64429643,1771.7,1771.6,0.52536707]